bitfinex/quotes_BTCUSD_20240818
["timestamp","ask_amount","ask_price","bid_price","bid_amount"]
[1724024211328,0.3058,59100.0,59098.0,0.118445]
[1724024211557,0.3058,59100.0,59093.0,0.236914]
[1724024211793,0.3058,59100.0,59098.0,0.118447]
[1724024212417,0.00046123,59096.0,59089.0,0.1]
[1724024212622,0.00046123,59098.0,59092.0,0.118459]
[1724024212830,0.00046123,59098.0,59094.0,0.236907]
[1724024213030,0.00046123,59094.0,59087.0,0.009042]
[1724024213232,0.00046123,59091.0,59087.0,0.009042]
[1724024213441,0.333,59093.0,59092.0,0.118459]
[1724024213852,0.333,59093.0,59092.0,0.355377]
[1724024214057,0.333,59093.0,59092.0,0.592295]
[1724024214671,0.32546123,59100.0,59091.0,0.0009064]
[1724024214873,0.325,59100.0,59096.0,0.11845]
[1724024215080,0.32546123,59100.0,59096.0,0.11845]
[1724024215277,0.325,59100.0,59096.0,0.11845]
[1724024215484,0.325,59100.0,59099.0,0.118445]
[1724024215893,0.325,59100.0,59091.0,0.0009064]
[1724024215894,0.00046123,59094.0,59091.0,0.0009064]
[1724024216096,0.325,59100.0,59091.0,0.0009064]
[1724024216097,0.32206123,59092.0,59091.0,0.0009064]
[1724024217338,0.3216,59092.0,59091.0,0.0009064]
[1724024217960,0.32206123,59092.0,59091.0,0.0049064]
[1724024218772,0.32206123,59092.0,59091.0,0.0089064]
[1724024218982,1.35829323,59092.0,59091.0,0.0089064]
[1724024219199,1.35829323,59092.0,59091.0,0.0009064]
[1724024219419,1.35829323,59092.0,59087.0,0.009042]
[1724024219420,0.67746223,59088.0,59087.0,0.009042]
[1724024220491,0.00046123,59085.0,59084.0,1e-08]
[1724024220698,0.11893123,59087.0,59084.0,1e-08]
[1724024220903,0.00046123,59087.0,59084.0,1e-08]
[1724024221304,0.118472,59086.0,59084.0,1e-08]
[1724024221809,0.11893423,59085.0,59084.0,1e-08]
[1724024221942,0.561534,59088.0,59084.0,1e-08]
[1724024221943,0.11993123,59087.0,59084.0,1e-08]
[1724024222149,0.00146123,59087.0,59084.0,1e-08]
[1724024222356,0.00146123,59087.0,59086.0,0.118471]
[1724024222357,0.002,59087.0,59086.0,0.118471]
[1724024222556,0.00046123,59085.0,59084.0,1e-08]
[1724024223015,0.118473,59085.0,59084.0,1e-08]
[1724024223180,0.118471,59086.0,59084.0,1e-08]
[1724024223395,0.11893423,59085.0,59084.0,1e-08]
[1724024223591,1.10528199,59085.0,59084.0,1e-08]
[1724024223793,1.51122677,59085.0,59084.0,1e-08]
[1724024224445,1.51122677,59085.0,59084.0,0.00100001]
[1724024224666,1.51622677,59085.0,59084.0,0.00100001]
[1724024224870,1.51122677,59085.0,59084.0,1e-08]
[1724024225272,1.69678131,59085.0,59084.0,0.00100001]
[1724024225495,1.52522677,59085.0,59084.0,0.00100001]
[1724024226114,1.33479823,59076.0,59075.0,0.009042]
[1724024226317,1.50635277,59076.0,59075.0,0.009042]
[1724024227190,1.50635277,59076.0,59073.0,0.0009053]
[1724024227394,1.33722623,59074.0,59073.0,0.0009053]
[1724024227595,1.10225623,59072.0,59058.0,0.009042]
[1724024227807,1.74780677,59072.0,59058.0,0.009042]
[1724024228027,1.80064499,59072.0,59058.0,0.009042]
[1724024228235,1.97319953,59072.0,59058.0,0.009042]
[1724024228437,1.97619953,59072.0,59058.0,0.009042]
[1724024228683,1.10038823,59059.0,59058.0,0.009042]
[1724024228885,1.33743923,59059.0,59058.0,0.009042]
[1724024229088,1.39227745,59059.0,59058.0,0.009042]
[1724024229719,1.70305973,59059.0,59058.0,0.009042]
[1724024229895,1.56383199,59059.0,59058.0,0.009042]
[1724024230125,0.59312823,59055.0,59052.0,0.009042]
[1724024230349,1.50904977,59055.0,59052.0,0.009042]
[1724024230550,2.2290913,59055.0,59052.0,0.009042]
[1724024230781,0.00046123,59053.0,59052.0,0.009042]
[1724024230976,2.01808777,59053.0,59052.0,0.009042]
[1724024231168,2.07250345,59053.0,59052.0,0.009042]
[1724024231373,2.24505799,59053.0,59052.0,0.009042]
[1724024231486,2.24505799,59053.0,59031.0,0.127845]
[1724024231487,0.86345723,59039.0,59031.0,0.009264]
[1724024231690,1.78015277,59039.0,59031.0,0.009264]
[1724024232731,1.83510722,59039.0,59031.0,0.009264]
[1724024232934,1.78715277,59039.0,59031.0,0.009264]
[1724024233307,1.37846723,59039.0,59031.0,0.127845]
[1724024233504,1.61559823,59039.0,59031.0,0.009264]
[1724024233713,1.02277123,59039.0,59034.0,0.118574]
[1724024233919,0.51501,59039.0,59036.0,0.237142]
[1724024234132,0.51501,59039.0,59037.0,0.118568]
[1724024234342,0.51501,59039.0,59038.0,0.1757192]
[1724024234343,0.51601,59039.0,59038.0,0.1757192]
[1724024234587,0.51601,59039.0,59038.0,0.6499892]
[1724024234588,0.52201,59039.0,59038.0,0.6499892]
[1724024235030,0.52201,59039.0,59038.0,0.1757192]
[1724024235235,0.51601,59039.0,59038.0,0.1757192]
[1724024235446,0.63503623,59039.0,59038.0,0.0571522]
[1724024235655,0.87016723,59039.0,59038.0,0.0571522]
[1724024235875,1.43249823,59039.0,59038.0,0.0571522]
[1724024236080,1.60859823,59039.0,59038.0,0.0571522]
[1724024236638,1.84572923,59039.0,59038.0,0.0571522]
[1724024236843,1.93538631,59039.0,59038.0,0.0571522]
[1724024237386,1.69725531,59039.0,59038.0,0.0571522]
[1724024237543,1.60959823,59039.0,59038.0,0.0571522]
[1724024237748,1.61759823,59039.0,59038.0,0.0571522]
[1724024238002,2.02728377,59039.0,59038.0,0.0571522]
[1724024238222,1.78915277,59039.0,59038.0,0.0571522]
[1724024238437,1.38646723,59039.0,59038.0,0.0580586]
[1724024238849,1.79515277,59039.0,59038.0,0.0580586]
[1724024239052,1.78915277,59039.0,59038.0,0.0580586]
[1724024239256,1.79515277,59039.0,59038.0,0.0580586]
[1724024240577,1.78615277,59039.0,59038.0,0.0580586]
[1724024240987,1.79515277,59039.0,59038.0,0.0580586]
[1724024241218,2.03228377,59039.0,59038.0,0.0580586]
[1724024241472,2.03228377,59039.0,59031.0,0.009264]
[1724024241473,1.09375823,59032.0,59031.0,0.009264]
[1724024241718,2.24964077,59032.0,59031.0,0.009264]
[1724024241990,2.53484077,59032.0,59031.0,0.009264]
[1724024242272,2.94455431,59032.0,59031.0,0.009264]
[1724024242512,1.09478823,59029.0,59028.0,0.24668584]
[1724024242744,2.01152377,59029.0,59028.0,0.24668584]
[1724024242996,2.01152377,59029.0,59025.0,0.02302945]
[1724024242997,1.26368423,59026.0,59025.0,0.02302945]
[1724024243237,2.38724877,59026.0,59025.0,0.02302945]
[1724024243490,2.44549402,59026.0,59025.0,0.02302945]
[1724024243748,2.38724877,59026.0,59025.0,0.02302945]
[1724024243974,2.15006577,59026.0,59025.0,0.02302945]
[1724024244434,1.92088277,59026.0,59025.0,0.02302945]
[1724024244698,1.66069977,59026.0,59025.0,0.02302945]
[1724024245183,1.83325431,59026.0,59025.0,0.02302945]
[1724024245379,1.92088277,59026.0,59025.0,0.02302945]
[1724024245598,1.89888277,59026.0,59025.0,0.02302945]
[1724024245893,2.13706577,59026.0,59025.0,0.02302945]
[1724024246159,2.16006577,59026.0,59025.0,0.02302945]
[1724024246409,2.15906577,59026.0,59025.0,0.02302945]
[1724024246630,2.33062031,59026.0,59025.0,0.02302945]
[1724024246838,2.15906577,59026.0,59025.0,0.02302945]
[1724024247124,1.92188277,59026.0,59025.0,0.02302945]
[1724024247601,2.15906577,59026.0,59025.0,0.02302945]
[1724024248312,2.15906577,59026.0,59025.0,0.14162245]
[1724024248313,0.51701,59026.0,59025.0,0.14162245]
[1724024248559,0.51701,59026.0,59025.0,0.37880945]
[1724024248754,0.51701,59026.0,59025.0,0.61599645]
[1724024249740,2.09536677,59026.0,59025.0,0.00724689]
[1724024249743,2.09436677,59026.0,59025.0,0.00724689]
[1724024249744,2.32954977,59026.0,59025.0,0.00724689]
[1724024250020,2.44654977,59026.0,59025.0,0.00724689]
[1724024250261,2.44254977,59026.0,59025.0,0.00724689]
[1724024250503,0.23767623,59018.0,59017.0,0.32926353]
[1724024250772,1.58886277,59018.0,59017.0,0.32926353]
[1724024251029,2.08729277,59018.0,59017.0,0.32926353]
[1724024251271,2.23484731,59018.0,59017.0,0.32926353]
[1724024251506,1.99763231,59018.0,59017.0,0.32926353]
[1724024251765,1.99863231,59018.0,59017.0,0.32926353]
[1724024252275,2.20993231,59018.0,59017.0,0.32926353]
[1724024252484,2.44714731,59018.0,59017.0,0.32926353]
[1724024252693,2.01437777,59018.0,59017.0,0.32926353]
[1724024256100,1.82707777,59018.0,59017.0,0.32926353]
[1724024256919,0.62807823,59018.0,59017.0,0.32926353]
[1724024257129,0.62512903,59018.0,59017.0,0.32926353]
[1724024257380,0.50947123,59018.0,59017.0,0.32926353]
[1724024257614,0.62807823,59018.0,59017.0,0.32926353]
[1724024258028,0.50947123,59018.0,59017.0,0.32926353]
[1724024258450,0.62807823,59018.0,59017.0,0.32926353]
[1724024258683,0.86529323,59018.0,59017.0,0.32926353]
[1724024259182,1.38431279,59018.0,59017.0,0.32926353]
[1724024259438,1.5277006,59018.0,59017.0,0.32926353]
[1724024260177,1.2904856,59018.0,59017.0,0.32926353]
[1724024261182,1.27406277,59018.0,59017.0,0.32926353]
[1724024261394,1.0532716,59018.0,59017.0,0.32926353]
[1724024261660,2.0635866,59018.0,59017.0,0.32926353]
[1724024261864,2.73257114,59018.0,59017.0,0.32926353]
[1724024262510,2.2768166,59018.0,59017.0,0.32926353]
[1724024262730,2.0396016,59018.0,59017.0,0.32926353]
[1724024262940,1.8580016,59018.0,59017.0,0.32926353]
[1724024263159,1.8580016,59018.0,59017.0,0.33016883]
[1724024263371,0.88171706,59018.0,59017.0,0.33016883]
[1724024263585,1.11893206,59018.0,59017.0,0.33016883]
[1724024264004,0.88171706,59018.0,59017.0,0.33016883]
[1724024264428,1.3658716,59018.0,59017.0,0.33016883]
[1724024264639,1.6030866,59018.0,59017.0,0.33016883]
[1724024265943,1.60308615,59018.0,59017.0,0.33016883]
[1724024266592,1.11893161,59018.0,59017.0,0.33016883]
[1724024266805,0.88618965,59018.0,59017.0,0.33016883]
[1724024267029,1.92829886,59018.0,59017.0,0.33016883]
[1724024267489,1.62325919,59018.0,59017.0,0.33016883]
[1724024268761,0.53036765,59018.0,59017.0,0.33016883]
[1724024268975,0.64897465,59018.0,59017.0,0.33016883]
[1724024269212,1.47866165,59018.0,59017.0,0.33016883]
[1724024269418,1.65021619,59018.0,59017.0,0.33016883]
[1724024269631,1.63379281,59018.0,59017.0,0.33016883]
[1724024269860,1.65021635,59018.0,59017.0,0.33016883]
[1724024270076,2.80600089,59018.0,59017.0,0.33016883]
[1724024270278,2.90716343,59018.0,59017.0,0.33016883]
[1724024270494,3.10806343,59018.0,59017.0,0.33016883]
[1724024270705,3.40996091,59018.0,59017.0,0.33016883]
[1724024270906,3.41096091,59018.0,59017.0,0.33016883]
[1724024271107,3.03390089,59018.0,59017.0,0.33016883]
[1724024271314,3.59207752,59018.0,59017.0,0.33016883]
[1724024271530,3.59107752,59018.0,59017.0,0.33016883]
[1724024271945,3.59007752,59018.0,59017.0,0.33016883]
[1724024272155,3.46609038,59018.0,59017.0,0.33016883]
[1724024272569,3.2839064,59018.0,59017.0,0.33016883]
[1724024272836,3.2639064,59018.0,59017.0,0.33016883]
[1724024273069,2.7732914,59018.0,59017.0,0.33016883]
[1724024273284,2.7782914,59018.0,59017.0,0.33016883]
[1724024273492,2.7882914,59018.0,59017.0,0.33016883]
[1724024273697,3.19706094,59018.0,59017.0,0.33016883]
[1724024273903,3.3963776,59018.0,59017.0,0.33016883]
[1724024274108,3.33016436,59018.0,59017.0,0.33016883]
[1724024274314,3.8750815,59018.0,59017.0,0.33016883]
[1724024274522,3.8450815,59018.0,59017.0,0.33016883]
[1724024274736,3.67052696,59018.0,59017.0,0.33016883]
[1724024274948,3.29446769,59018.0,59017.0,0.33016883]
[1724024275165,3.27030178,59018.0,59017.0,0.33016883]
[1724024275360,3.29530178,59018.0,59017.0,0.33016883]
[1724024275590,3.46667932,59018.0,59017.0,0.33016883]
[1724024275798,3.52114759,59018.0,59017.0,0.33016883]
[1724024276214,3.3574642,59018.0,59017.0,0.33016883]
[1724024276438,3.52314727,59018.0,59017.0,0.33016883]
[1724024277151,3.468679,59018.0,59017.0,0.33016883]
[1724024277602,3.468679,59018.0,59011.0,0.0002]
[1724024277603,1.62283623,59012.0,59011.0,1e-06]
[1724024277808,2.91570839,59012.0,59011.0,1e-06]
[1724024278018,3.22941566,59012.0,59011.0,1e-06]
[1724024278439,1.07310823,59008.0,59007.0,0.3413398]
[1724024278648,2.45760966,59008.0,59007.0,0.3413398]
[1724024279059,2.63900966,59008.0,59007.0,0.3413398]
[1724024279296,2.63565572,59008.0,59007.0,0.3413398]
[1724024279499,2.9686208,59008.0,59007.0,0.3413398]
[1724024279707,2.75306336,59008.0,59007.0,0.3413398]
[1724024279912,2.75406336,59008.0,59007.0,0.3413398]
[1724024280330,2.63122058,59008.0,59007.0,0.3413398]
[1724024280537,2.36596558,59008.0,59007.0,0.3413398]
[1724024280741,2.37496558,59008.0,59007.0,0.3413398]
[1724024280957,2.71336558,59008.0,59007.0,0.3413398]
[1724024281365,2.70394841,59008.0,59007.0,0.3413398]
[1724024281574,2.84631349,59008.0,59007.0,0.3413398]
[1724024281783,1.47365639,59008.0,59007.0,0.3413398]
[1724024282432,1.47362456,59008.0,59007.0,0.3413398]
[1724024282648,1.71087956,59008.0,59007.0,0.3413398]
[1724024282871,1.66527159,59008.0,59007.0,0.3413398]
[1724024283083,1.4736264,59008.0,59007.0,0.3413398]
[1724024283297,1.5981489,59008.0,59007.0,0.3413398]
[1724024284129,1.56895737,59008.0,59007.0,0.3413398]
[1724024284536,1.44443487,59008.0,59007.0,0.3413398]
[1724024284750,1.56854973,59008.0,59007.0,0.3413398]
[1724024284961,1.20677223,59008.0,59007.0,0.3413398]
[1724024285165,1.44402723,59008.0,59007.0,0.3413398]
[1724024285387,1.44402753,59008.0,59007.0,0.3413398]
[1724024285587,1.08814553,59008.0,59007.0,0.3413398]
[1724024285824,1.20677253,59008.0,59007.0,0.3413398]
[1724024286034,1.01625156,59008.0,59007.0,0.4599688]
[1724024286238,0.54048217,59008.0,59007.0,1.2528868]
[1724024286449,0.57391724,59008.0,59007.0,1.2528868]
[1724024286661,0.52406359,59008.0,59007.0,1.2528868]
[1724024286870,0.51501,59008.0,59007.0,1.6828458]
[1724024287089,0.50801,59008.0,59007.0,1.6828458]
[1724024287304,0.51101,59008.0,59007.0,1.4455868]
[1724024287527,0.50901,59008.0,59007.0,0.3413398]
[1724024287814,0.50901,59008.0,59007.0,0.4599688]
[1724024288021,0.50801,59008.0,59007.0,1.1280921]
[1724024288239,0.50901,59008.0,59007.0,0.6535741]
[1724024288476,0.50901,59008.0,59007.0,0.8908331]
[1724024288687,0.50801,59008.0,59007.0,1.1280921]
[1724024289113,0.50901,59008.0,59007.0,0.8908331]
[1724024290611,0.51701,59008.0,59007.0,0.8908331]
[1724024290824,0.50901,59008.0,59007.0,1.1280921]
[1724024291034,0.50901,59008.0,59007.0,1.1290921]
[1724024292731,0.50901,59008.0,59007.0,1.4700921]
[1724024292952,0.50901,59008.0,59007.0,1.87890564]
[1724024293162,0.50901,59008.0,59007.0,2.24411105]
[1724024294029,0.50801,59008.0,59007.0,2.24411105]
[1724024294451,0.50801,59008.0,59007.0,2.24311105]
[1724024294452,0.50901,59008.0,59007.0,2.24311105]
[1724024294666,0.51001,59008.0,59007.0,2.24411105]
[1724024294873,0.50901,59008.0,59007.0,2.24411105]
[1724024295321,0.51001,59008.0,59007.0,2.24016464]
[1724024295498,0.51001,59008.0,59007.0,2.24116464]
[1724024295705,0.51001,59008.0,59007.0,2.24316464]
[1724024295931,0.50901,59008.0,59007.0,2.24311105]
[1724024296321,0.51001,59008.0,59007.0,2.24511105]
[1724024296539,0.51001,59008.0,59007.0,2.24311105]
[1724024296774,0.50901,59008.0,59007.0,2.24311105]
[1724024296989,0.51001,59008.0,59007.0,2.24611105]
[1724024297214,0.50901,59008.0,59007.0,2.24311105]
[1724024297437,0.51001,59008.0,59007.0,2.24611105]
[1724024297637,0.50901,59008.0,59007.0,2.24611105]
[1724024297893,0.50901,59008.0,59007.0,2.24311105]
[1724024298298,0.50801,59008.0,59007.0,2.24311105]
[1724024299166,0.47275837,59008.0,59007.0,2.24311105]
[1724024299388,0.000823,59026.0,59017.0,1.49223141]
[1724024299621,0.51259809,59026.0,59017.0,2.03918595]
[1724024299845,0.25078,59018.0,59017.0,1.93388595]
[1724024300065,0.23985442,59018.0,59017.0,2.17110495]
[1724024300268,0.51177509,59043.0,59042.0,0.355678]
[1724024300488,0.51177509,59043.0,59042.0,1.37355154]
[1724024300690,0.237045,59061.0,59050.0,0.35563]
[1724024300691,0.63030109,59059.0,59050.0,0.35563]
[1724024300897,0.11853,59057.0,59050.0,0.218543]
[1724024301128,0.237055,59058.0,59050.0,0.218543]
[1724024301335,0.237045,59061.0,59050.0,0.218543]
[1724024301336,0.11853,59057.0,59050.0,0.218543]
[1724024301544,0.237055,59058.0,59050.0,0.1]
[1724024301758,0.237044,59061.0,59035.0,0.1864]
[1724024301759,0.11855,59047.0,59035.0,0.1864]
[1724024301957,0.118556,59044.0,59038.0,0.118567]
[1724024302162,0.745224,59046.0,59036.0,0.1]
[1724024302163,0.50812,59043.0,59039.0,0.1]
[1724024302370,0.50812,59043.0,59038.0,0.118567]
[1724024302573,0.50812,59043.0,59039.0,0.218565]
[1724024302778,0.50912,59043.0,59042.0,0.014]
[1724024302979,0.50812,59043.0,59039.0,0.218564]
[1724024303258,0.50812,59043.0,59039.0,0.228564]
[1724024303462,0.50812,59043.0,59039.0,0.11]
[1724024303675,0.50812,59043.0,59038.0,0.118566]
[1724024303896,0.50812,59043.0,59042.0,0.002]
[1724024304328,0.50812,59043.0,59039.0,0.104]
[1724024304329,0.50812,59043.0,59039.0,0.218565]
[1724024304532,0.50812,59043.0,59039.0,0.220565]
[1724024304671,0.50812,59043.0,59039.0,0.224565]
[1724024305080,0.50812,59043.0,59039.0,0.106]
[1724024305487,0.50812,59043.0,59039.0,0.224565]
[1724024306082,0.50812,59043.0,59039.0,0.220565]
[1724024306288,0.50912,59043.0,59042.0,0.005]
[1724024306624,0.50812,59043.0,59038.0,0.218566]
[1724024306840,0.50812,59043.0,59039.0,0.118565]
[1724024307032,0.50912,59043.0,59042.0,0.003]
[1724024307229,0.50912,59043.0,59042.0,0.121559]
[1724024307511,0.50812,59043.0,59042.0,0.118559]
[1724024307864,0.50812,59043.0,59040.0,0.218562]
[1724024308284,0.50812,59043.0,59040.0,0.1]
[1724024308736,0.50812,59043.0,59042.0,0.002]
[1724024309357,0.50812,59043.0,59042.0,0.006]
[1724024310766,0.50812,59043.0,59042.0,0.004]
[1724024311531,0.50812,59043.0,59042.0,0.006]
[1724024312505,0.508943,59043.0,59042.0,0.006]
[1724024313106,0.508943,59043.0,59042.0,0.002]
[1724024313310,0.508943,59043.0,59041.0,0.11856]
[1724024313517,0.508943,59043.0,59042.0,0.004]
[1724024313729,0.508943,59043.0,59042.0,0.122559]
[1724024314121,0.508943,59043.0,59042.0,0.001]
[1724024314718,0.508943,59043.0,59042.0,0.119559]
[1724024314921,0.508943,59043.0,59042.0,0.118559]
[1724024315128,0.508943,59043.0,59042.0,0.120559]
[1724024316012,0.508943,59043.0,59042.0,0.357678]
[1724024316730,0.508943,59043.0,59042.0,0.124559]
[1724024316964,0.508943,59043.0,59042.0,0.004]
[1724024317188,0.508943,59043.0,59042.0,0.003]
[1724024317629,0.508943,59043.0,59042.0,0.008]
[1724024317630,0.509943,59043.0,59042.0,0.008]
[1724024318108,0.509943,59043.0,59042.0,0.005]
[1724024318397,2.03699954,59043.0,59042.0,0.005]
[1724024318605,0.3438,59034.0,59022.0,0.237199]
[1724024318840,0.3438,59034.0,59025.0,0.118593]
[1724024318841,0.1818,59031.0,59025.0,0.118593]
[1724024319039,0.300382,59031.0,59025.0,0.118593]
[1724024319240,0.1818,59031.0,59026.0,0.118591]
[1724024319442,0.1818,59031.0,59027.0,0.118589]
[1724024319844,0.1818,59031.0,59021.0,0.3311]
[1724024320047,0.118595,59025.0,59017.0,0.237219]
[1724024320247,0.118595,59025.0,59019.0,0.118605]
[1724024320491,0.118588,59028.0,59022.0,0.118598]
[1724024320672,0.50812,59027.0,59023.0,0.1]
[1724024321101,0.118592,59026.0,59023.0,0.1]
[1724024321304,0.118598,59023.0,59017.0,0.118609]
[1724024321455,0.50812,59025.0,59019.0,0.003]
[1724024321456,0.3431,59024.0,59019.0,0.003]
[1724024321632,0.62672,59022.0,59019.0,0.003]
[1724024321822,0.118603,59020.0,59019.0,0.003]
[1724024322629,0.118601,59021.0,59019.0,0.003]
[1724024323044,0.118601,59021.0,59016.0,0.1]
[1724024323253,0.50812,59022.0,59016.0,0.3269]
[1724024323485,0.50812,59022.0,59019.0,0.118605]
[1724024323692,0.50812,59022.0,59021.0,0.118601]
[1724024323901,0.50812,59022.0,59021.0,0.590007]
[1724024324105,0.50812,59022.0,59021.0,0.690007]
[1724024324528,0.51112,59022.0,59021.0,0.690007]
[1724024324739,0.50812,59022.0,59021.0,0.690007]
[1724024325136,0.51112,59022.0,59021.0,0.86156154]
[1724024325345,0.51112,59022.0,59021.0,1.43206454]
[1724024325551,0.51112,59022.0,59021.0,1.43406454]
[1724024325750,0.51112,59022.0,59021.0,1.43206454]
[1724024325751,0.51312,59022.0,59021.0,1.43206454]
[1724024325983,0.51312,59022.0,59021.0,1.43406454]
[1724024326182,0.51312,59022.0,59021.0,1.43606454]
[1724024326486,0.50812,59022.0,59021.0,1.45706454]
[1724024326691,0.50812,59022.0,59021.0,1.45606454]
[1724024326894,0.50812,59022.0,59021.0,1.45906454]
[1724024327100,0.50812,59022.0,59021.0,1.45606454]
[1724024327314,0.50812,59022.0,59021.0,1.46206454]
[1724024327521,0.50912,59022.0,59021.0,1.46206454]
[1724024327940,0.50912,59022.0,59021.0,1.46401095]
[1724024328148,0.50812,59022.0,59021.0,1.69721395]
[1724024328551,0.50812,59022.0,59021.0,1.89251395]
[1724024328752,0.50912,59022.0,59021.0,1.89251395]
[1724024328959,0.50912,59022.0,59021.0,2.12971695]
[1724024329162,0.51012,59022.0,59021.0,2.14071695]
[1724024329361,0.30912,59022.0,59021.0,1.94541695]
[1724024329779,0.002,59022.0,59021.0,1.94541695]
[1724024329986,0.002,59022.0,59021.0,1.70726754]
[1724024330192,0.51177509,59041.0,59036.0,0.23714]
[1724024330397,0.51177509,59041.0,59040.0,0.35569]
[1724024330601,0.000823,59043.0,59042.0,0.355678]
[1724024330804,0.000823,59043.0,59042.0,0.52723254]
[1724024331185,0.000823,59043.0,59042.0,0.76435154]
[1724024331385,0.000823,59043.0,59042.0,0.52723254]
[1724024331591,0.00643598,59043.0,59042.0,0.52723254]
[1724024331789,0.001823,59043.0,59042.0,0.52723254]
[1724024332139,0.00743598,59043.0,59040.0,0.1]
[1724024332337,0.00743598,59043.0,59037.0,0.3333]
[1724024332338,0.001823,59043.0,59038.0,0.218567]
[1724024332540,0.00449626,59042.0,59038.0,0.218567]
[1724024332721,0.00449626,59042.0,59038.0,0.1]
[1724024332945,0.00449626,59042.0,59037.0,0.218569]
[1724024333153,0.118562,59041.0,59037.0,0.1]
[1724024333356,0.00449626,59042.0,59037.0,0.1]
[1724024333357,0.00449626,59042.0,59037.0,0.118569]
[1724024333493,0.00449333,59040.0,59038.0,0.1]
[1724024333694,0.0044948,59041.0,59038.0,0.1]
[1724024333930,0.00449186,59039.0,59038.0,0.1]
[1724024334081,0.119382,59043.0,59038.0,0.1]
[1724024334590,0.00449626,59042.0,59038.0,0.1]
[1724024334799,0.00449626,59042.0,59038.0,0.003]
[1724024334949,0.00449626,59042.0,59037.0,0.218569]
[1724024335150,0.00449626,59042.0,59039.0,0.118565]
[1724024335337,0.00449626,59042.0,59040.0,0.1]
[1724024336562,0.00449626,59042.0,59038.0,0.1]
[1724024336962,0.000823,59040.0,59038.0,0.1]
[1724024337213,0.00449186,59039.0,59038.0,0.1]
[1724024337622,0.000823,59040.0,59036.0,0.21857]
[1724024337833,0.00449186,59039.0,59037.0,0.118569]
[1724024338037,0.00449186,59039.0,59038.0,0.1]
[1724024339505,0.00449186,59039.0,59033.0,0.1]
[1724024339717,0.00549186,59039.0,59038.0,0.004]
[1724024340541,0.00549186,59039.0,59037.0,0.1]
[1724024340750,0.00549186,59039.0,59038.0,0.87305654]
[1724024340958,0.00449186,59039.0,59038.0,1.21019154]
[1724024341184,0.000823,59040.0,59039.0,0.592827]
[1724024341393,0.000823,59040.0,59039.0,0.76438154]
[1724024341629,0.000823,59040.0,59039.0,0.86638154]
[1724024341840,0.000823,59040.0,59039.0,0.86438154]
[1724024342900,0.000823,59040.0,59039.0,0.86638154]
[1724024344588,0.000823,59040.0,59039.0,0.87670227]
[1724024344797,0.000823,59040.0,59039.0,1.11383327]
[1724024344971,0.000823,59040.0,59039.0,1.13683327]
[1724024345690,0.000823,59040.0,59039.0,1.93021068]
[1724024346270,0.000823,59040.0,59039.0,1.92821068]
[1724024346698,0.000823,59040.0,59039.0,1.93621068]
[1724024347097,0.000823,59040.0,59039.0,1.92821068]
[1724024347301,0.001823,59040.0,59039.0,1.94821068]
[1724024347794,0.000823,59040.0,59039.0,1.92821068]
[1724024347919,0.001823,59040.0,59039.0,1.93621068]
[1724024348482,0.000823,59040.0,59039.0,1.92821068]
[1724024348731,0.001823,59040.0,59039.0,1.94021068]
[1724024348944,0.001823,59040.0,59039.0,1.95321068]
[1724024349337,0.001823,59040.0,59039.0,2.17734168]
[1724024349602,0.001823,59040.0,59039.0,2.19134168]
[1724024351319,0.000823,59040.0,59039.0,2.17934168]
[1724024351772,0.001823,59040.0,59039.0,1.95021068]
[1724024351984,0.001823,59040.0,59039.0,1.93621068]
[1724024352410,0.001823,59040.0,59039.0,1.95021068]
[1724024352617,0.000823,59040.0,59039.0,1.92821068]
[1724024353048,0.000823,59040.0,59039.0,1.72966427]
[1724024353252,0.000823,59040.0,59039.0,1.71566427]
[1724024353455,0.000823,59040.0,59039.0,1.72966427]
[1724024353904,0.000823,59040.0,59039.0,1.71761068]
[1724024354104,0.000823,59040.0,59039.0,1.71961068]
[1724024354626,0.000823,59040.0,59039.0,1.71866427]
[1724024355042,0.000823,59040.0,59039.0,1.73266427]
[1724024355245,0.000823,59040.0,59039.0,1.74666427]
[1724024355448,0.000823,59040.0,59039.0,1.71866427]
[1724024355695,0.000823,59040.0,59039.0,1.73266427]
[1724024355867,0.000823,59040.0,59039.0,1.74666427]
[1724024356453,0.000823,59040.0,59039.0,1.74366427]
[1724024356898,0.000823,59040.0,59039.0,0.80270227]
[1724024357312,0.00538941,59040.0,59039.0,0.80270227]
[1724024357519,0.000823,59040.0,59039.0,0.80270227]
[1724024357730,0.00538059,59040.0,59039.0,0.80270227]
[1724024357929,0.000823,59040.0,59039.0,0.78870227]
[1724024358154,0.00537331,59040.0,59039.0,1.01283327]
[1724024358401,0.001823,59040.0,59039.0,1.02683327]
[1724024358608,0.001823,59040.0,59039.0,0.90270227]
[1724024359070,0.001823,59040.0,59039.0,0.92570227]
[1724024359490,0.00637331,59040.0,59039.0,0.92570227]
[1724024360064,0.00637331,59040.0,59039.0,0.92275307]
[1724024362623,0.00637331,59040.0,59039.0,0.66262207]
[1724024362976,0.00637331,59040.0,59039.0,0.89975307]
[1724024363589,0.20407331,59040.0,59039.0,0.89975307]
[1724024364157,0.20307331,59040.0,59039.0,0.88575307]
[1724024364388,0.20307331,59040.0,59039.0,0.87175307]
[1724024364600,0.20407331,59040.0,59039.0,0.88475307]
[1724024365029,0.20307331,59040.0,59039.0,0.88575307]
[1724024365245,0.20292221,59040.0,59039.0,0.87175307]
[1724024365463,0.20392221,59040.0,59039.0,0.88475307]
[1724024365675,0.20392221,59040.0,59039.0,0.89875307]
[1724024365875,0.20292221,59040.0,59039.0,0.88575307]
[1724024366289,0.20392221,59040.0,59039.0,0.89875307]
[1724024366613,0.20392221,59040.0,59039.0,0.66162207]
[1724024366816,0.20392221,59040.0,59039.0,0.53568554]
[1724024367121,0.20392221,59040.0,59039.0,0.65425054]
[1724024367365,0.20392221,59040.0,59039.0,0.127]
[1724024368498,0.20292221,59040.0,59039.0,0.1]
[1724024368708,0.20292221,59040.0,59039.0,0.002]
[1724024369331,0.20292221,59040.0,59039.0,0.004]
[1724024369744,0.20275109,59040.0,59039.0,0.004]
[1724024370571,0.20275109,59040.0,59039.0,0.002]
[1724024370774,0.20275109,59040.0,59039.0,0.004]
[1724024370988,0.20275109,59040.0,59039.0,0.002]
[1724024371189,0.20275109,59040.0,59039.0,0.003]
[1724024371399,0.20275109,59040.0,59038.0,0.218566]